[Event "Live Chess"]
[Site "Chess.com"]
[Date "2024.06.02"]
[Round "-"]
[White "booktrunk"]
[Black "rekosheten"]
[Result "0-1"]
[WhiteElo "1524"]
[BlackElo "2460"]
[TimeControl "300"]
[EndTime "22:27:24 PDT"]
[Termination "rekosheten won by resignation"]

1. d4 {[%clk 0:04:52.1]} 1... Nf6 {[%clk 0:04:58.9]} 2. Nc3 {[%clk 0:04:49.9]}
2... d5 {[%clk 0:04:57.9]} 3. Bf4 {[%clk 0:04:48]} 3... c5 {[%clk 0:04:57.4]} 4.
dxc5 {[%clk 0:04:44.8]} 4... d4 {[%clk 0:04:55.9]} 5. Na4 {[%clk 0:04:24.5]}
5... Nc6 {[%clk 0:04:53]} 6. e3 {[%clk 0:04:22.6]} 6... e5 {[%clk 0:04:51.8]} 7.
Bg5 {[%clk 0:04:20.6]} 7... Qa5+ {[%clk 0:04:50.4]} 8. c3 {[%clk 0:04:18.3]}
8... Ne4 {[%clk 0:04:49.2]} 9. Bh4 {[%clk 0:04:09.1]} 9... dxc3 {[%clk
0:04:45.5]} 10. Nxc3 {[%clk 0:04:04.8]} 10... Nxc3 {[%clk 0:04:17.5]} 11. bxc3
{[%clk 0:04:01.9]} 11... Qxc3+ {[%clk 0:03:43.3]} 12. Ke2 {[%clk 0:03:58.4]}
12... Qc4+ {[%clk 0:03:35.4]} 13. Ke1 {[%clk 0:03:55.8]} 13... Qxh4 {[%clk
0:03:35.3]} 14. g3 {[%clk 0:03:50.8]} 14... Qb4+ {[%clk 0:03:31.4]} 15. Qd2
{[%clk 0:03:45.1]} 15... Bxc5 {[%clk 0:03:27.7]} 16. Ne2 {[%clk 0:03:42.8]}
16... Qe4 {[%clk 0:03:25.6]} 17. Rg1 {[%clk 0:03:39]} 17... Bb4 {[%clk
0:03:23.6]} 18. Nc3 {[%clk 0:03:36.4]} 18... Qg6 {[%clk 0:03:16.1]} 19. Rb1
{[%clk 0:03:32.8]} 19... Bxc3 {[%clk 0:03:12.1]} 0-1

[Event "Live Chess"]
[Site "Chess.com"]
[Date "2024.06.02"]
[Round "-"]
[White "febray_27"]
[Black "MagnersCarlsberg2870"]
[Result "1-0"]
[WhiteElo "2016"]
[BlackElo "1832"]
[TimeControl "300"]
[EndTime "22:29:23 PDT"]
[Termination "febray_27 won by resignation"]

1. Nf3 {[%clk 0:04:56.4]} 1... Nc6 {[%clk 0:04:57.9]} 2. d4 {[%clk 0:04:54.9]}
2... e6 {[%clk 0:04:53.3]} 3. g3 {[%clk 0:04:46.5]} 3... f5 {[%clk 0:04:52.1]}
4. Bg2 {[%clk 0:04:44.9]} 4... Nf6 {[%clk 0:04:51.2]} 5. O-O {[%clk 0:04:44.5]}
5... Be7 {[%clk 0:04:49.8]} 6. c4 {[%clk 0:04:44.1]} 6... O-O {[%clk 0:04:48.4]}
7. Nc3 {[%clk 0:04:43.7]} 7... Qe8 {[%clk 0:04:44.7]} 8. Re1 {[%clk 0:04:42.9]}
8... d5 {[%clk 0:04:41.3]} 9. cxd5 {[%clk 0:04:41.4]} 9... exd5 {[%clk
0:04:40.1]} 10. Ne5 {[%clk 0:04:40]} 10... Ng4 {[%clk 0:04:32.3]} 11. Nxd5
{[%clk 0:04:23]} 11... Ngxe5 {[%clk 0:04:29.7]} 12. dxe5 {[%clk 0:04:15.8]}
12... Be6 {[%clk 0:04:27.8]} 13. Nxc7 {[%clk 0:04:14.5]} 13... Qh5 {[%clk
0:04:24.2]} 14. Nxe6 {[%clk 0:04:09.3]} 14... Rfd8 {[%clk 0:04:19]} 15. Nxd8
{[%clk 0:04:07.8]} 15... Rxd8 {[%clk 0:04:17.9]} 16. Qb3+ {[%clk 0:04:04.1]}
16... Kh8 {[%clk 0:04:15.9]} 17. Qxb7 {[%clk 0:03:58.4]} 17... Nxe5 {[%clk
0:04:06.8]} 18. Qxe7 {[%clk 0:03:54.3]} 18... Re8 {[%clk 0:04:05.6]} 19. Qxa7
{[%clk 0:03:47]} 19... Ng4 {[%clk 0:04:02.8]} 20. h3 {[%clk 0:03:41.8]} 20...
Nf6 {[%clk 0:03:52.7]} 21. Be3 {[%clk 0:03:38.9]} 1-0

[Event "Live Chess"]
[Site "Chess.com"]
[Date "2024.06.02"]
[Round "-"]
[White "KeithArkell"]
[Black "juniortay"]
[Result "0-1"]
[WhiteElo "2417"]
[BlackElo "2422"]
[TimeControl "300"]
[EndTime "22:31:30 PDT"]
[Termination "juniortay won by resignation"]

1. d4 {[%clk 0:04:57.7]} 1... d5 {[%clk 0:04:59.3]} 2. Nf3 {[%clk 0:04:57.1]}
2... c5 {[%clk 0:04:58.4]} 3. c4 {[%clk 0:04:56.1]} 3... e6 {[%clk 0:04:57.5]}
4. cxd5 {[%clk 0:04:55.5]} 4... exd5 {[%clk 0:04:57.4]} 5. g3 {[%clk 0:04:54.3]}
5... Nc6 {[%clk 0:04:56.9]} 6. Bg2 {[%clk 0:04:53.9]} 6... Nf6 {[%clk
0:04:56.4]} 7. O-O {[%clk 0:04:53.2]} 7... cxd4 {[%clk 0:04:55.8]} 8. Nxd4
{[%clk 0:04:52]} 8... Bc5 {[%clk 0:04:55.5]} 9. Nxc6 {[%clk 0:04:51.3]} 9...
bxc6 {[%clk 0:04:54.8]} 10. Qc2 {[%clk 0:04:50.8]} 10... Qb6 {[%clk 0:04:54.3]}
11. Nc3 {[%clk 0:04:46.8]} 11... Be7 {[%clk 0:04:52.5]} 12. Bg5 {[%clk 0:04:45]}
12... O-O {[%clk 0:04:49.3]} 13. Na4 {[%clk 0:04:43.6]} 13... Qa6 {[%clk
0:04:44.3]} 14. b3 {[%clk 0:04:41.3]} 14... Be6 {[%clk 0:04:38.7]} 15. Nc5
{[%clk 0:04:40]} 15... Bxc5 {[%clk 0:04:35.1]} 16. Qxc5 {[%clk 0:04:38.7]} 16...
Ne4 {[%clk 0:04:33.4]} 17. Bxe4 {[%clk 0:04:32]} 17... dxe4 {[%clk 0:04:33.3]}
18. Qe3 {[%clk 0:04:23.7]} 18... Bd5 {[%clk 0:04:29.8]} 19. Bf4 {[%clk
0:04:22.5]} 19... Rfe8 {[%clk 0:04:21]} 20. Bd6 {[%clk 0:04:20.3]} 20... Re6
{[%clk 0:04:14.9]} 21. Bc5 {[%clk 0:04:18.3]} 21... h5 {[%clk 0:03:58.5]} 22. h4
{[%clk 0:04:13.9]} 22... Rg6 {[%clk 0:03:10.5]} 23. Rfd1 {[%clk 0:04:05.9]}
23... Qc8 {[%clk 0:03:04.9]} 24. Rd2 {[%clk 0:04:04.7]} 24... Qh3 {[%clk
0:02:59.9]} 25. Rad1 {[%clk 0:03:26.8]} 25... Qxh4 {[%clk 0:02:54.5]} 26. Rxd5
{[%clk 0:03:25.5]} 26... cxd5 {[%clk 0:02:47.7]} 27. Rxd5 {[%clk 0:03:24.2]}
27... Re8 {[%clk 0:02:40.4]} 28. Kg2 {[%clk 0:03:13.2]} 28... Qg4 {[%clk
0:02:37.3]} 29. Bd6 {[%clk 0:02:59.3]} 29... Rd8 {[%clk 0:02:17.9]} 30. Qxa7
{[%clk 0:02:14.6]} 30... Qxe2 {[%clk 0:01:40.6]} 31. Qe7 {[%clk 0:02:01.9]}
31... Qf3+ {[%clk 0:01:37]} 32. Kg1 {[%clk 0:02:01]} 32... Rc8 {[%clk
0:01:29.6]} 33. Rc5 {[%clk 0:01:58]} 33... Rxc5 {[%clk 0:01:13.7]} 34. Bxc5
{[%clk 0:01:53.8]} 34... Qd1+ {[%clk 0:01:00.7]} 35. Kg2 {[%clk 0:01:50.9]}
35... Qf3+ {[%clk 0:00:57.1]} 36. Kg1 {[%clk 0:01:50.2]} 36... h4 {[%clk
0:00:50.2]} 37. Qxh4 {[%clk 0:01:47.4]} 37... Rh6 {[%clk 0:00:48.1]} 38. Qd8+
{[%clk 0:01:42.4]} 38... Kh7 {[%clk 0:00:47]} 0-1

[Event "Live Chess"]
[Site "Chess.com"]
[Date "2024.06.02"]
[Round "-"]
[White "Dhaydon19"]
[Black "EPotapov05"]
[Result "1-0"]
[WhiteElo "2680"]
[BlackElo "1791"]
[TimeControl "300"]
[EndTime "22:32:02 PDT"]
[Termination "Dhaydon19 won by resignation"]

1. d4 {[%clk 0:04:57.9]} 1... d5 {[%clk 0:04:56.7]} 2. Nf3 {[%clk 0:04:57.6]}
2... Nf6 {[%clk 0:04:54.7]} 3. g3 {[%clk 0:04:57.1]} 3... Bf5 {[%clk 0:04:52.5]}
4. Bg2 {[%clk 0:04:55.5]} 4... h6 {[%clk 0:04:51]} 5. O-O {[%clk 0:04:55]} 5...
c6 {[%clk 0:04:50]} 6. Nbd2 {[%clk 0:04:53.2]} 6... e6 {[%clk 0:04:47.5]} 7. Ne5
{[%clk 0:04:52.4]} 7... Nbd7 {[%clk 0:04:45.1]} 8. Nxd7 {[%clk 0:04:51.3]} 8...
Qxd7 {[%clk 0:04:42.9]} 9. Re1 {[%clk 0:04:51]} 9... Be7 {[%clk 0:04:41.1]} 10.
c3 {[%clk 0:04:50.1]} 10... O-O {[%clk 0:04:38.9]} 11. Nf3 {[%clk 0:04:49.3]}
11... Be4 {[%clk 0:04:28.7]} 12. Ne5 {[%clk 0:04:45.2]} 12... Qc7 {[%clk
0:04:27]} 13. f3 {[%clk 0:04:44.4]} 13... Bh7 {[%clk 0:04:24.7]} 14. Bf4 {[%clk
0:04:39.5]} 14... Bd6 {[%clk 0:04:21]} 15. Nd3 {[%clk 0:04:37.7]} 15... Bxf4
{[%clk 0:04:19.1]} 16. Nxf4 {[%clk 0:04:36.2]} 16... e5 {[%clk 0:04:08.7]} 17.
dxe5 {[%clk 0:04:31.4]} 17... Qxe5 {[%clk 0:04:08.2]} 18. Qd4 {[%clk 0:04:30.7]}
18... Qxd4+ {[%clk 0:04:02.6]} 19. cxd4 {[%clk 0:04:28.9]} 19... Rfe8 {[%clk
0:04:01.6]} 20. Kf2 {[%clk 0:04:27.9]} 20... Re7 {[%clk 0:03:59.2]} 21. e3
{[%clk 0:04:27]} 21... Rae8 {[%clk 0:03:56.1]} 22. Bf1 {[%clk 0:04:25.2]} 22...
g5 {[%clk 0:03:37.7]} 23. Nd3 {[%clk 0:04:23.6]} 23... Nd7 {[%clk 0:03:34.4]}
24. Rac1 {[%clk 0:04:19.4]} 24... f6 {[%clk 0:03:32.4]} 25. g4 {[%clk
0:04:18.3]} 25... Kg7 {[%clk 0:03:29.9]} 26. Nb4 {[%clk 0:04:15.5]} 26... Nb6
{[%clk 0:03:19.7]} 27. b3 {[%clk 0:04:13.5]} 27... Nc8 {[%clk 0:03:18.2]} 28.
Bd3 {[%clk 0:04:02.3]} 28... Nd6 {[%clk 0:03:13]} 29. Bxh7 {[%clk 0:04:00.8]}
29... Kxh7 {[%clk 0:03:12.9]} 30. Nd3 {[%clk 0:04:00]} 30... Kg6 {[%clk
0:03:08.2]} 31. h3 {[%clk 0:03:52.1]} 31... f5 {[%clk 0:03:07]} 32. Ne5+ {[%clk
0:03:50.5]} 32... Kf6 {[%clk 0:03:02.6]} 33. a4 {[%clk 0:03:48.6]} 33... fxg4
{[%clk 0:02:58.5]} 34. hxg4 {[%clk 0:03:46.7]} 34... Nf7 {[%clk 0:02:51]} 35.
Nd3 {[%clk 0:03:44.1]} 35... Kg6 {[%clk 0:02:46.9]} 36. Rc2 {[%clk 0:03:40.4]}
36... h5 {[%clk 0:02:45.5]} 37. gxh5+ {[%clk 0:03:37.1]} 37... Kxh5 {[%clk
0:02:44.4]} 38. Rh1+ {[%clk 0:03:36.7]} 38... Kg6 {[%clk 0:02:43.3]} 39. Re2
{[%clk 0:03:35.4]} 39... Rh8 {[%clk 0:02:41.5]} 40. Rxh8 {[%clk 0:03:33.7]}
40... Nxh8 {[%clk 0:02:40.1]} 41. Ne5+ {[%clk 0:03:33]} 41... Kf6 {[%clk
0:02:37.3]} 42. Kg3 {[%clk 0:03:22.1]} 42... Ng6 {[%clk 0:02:35.6]} 43. Ng4+
{[%clk 0:03:21.3]} 43... Kg7 {[%clk 0:02:25.2]} 44. Rh2 {[%clk 0:03:20.8]} 44...
Re8 {[%clk 0:02:06.8]} 45. Rh5 {[%clk 0:03:18.2]} 45... Ne7 {[%clk 0:01:48.1]}
46. Rxg5+ {[%clk 0:03:08.2]} 46... Kf7 {[%clk 0:01:47.2]} 47. Re5 {[%clk
0:02:59.3]} 47... Ng6 {[%clk 0:01:43.6]} 48. Rxe8 {[%clk 0:02:57.5]} 48... Kxe8
{[%clk 0:01:43.5]} 49. Ne5 {[%clk 0:02:53.4]} 49... Ne7 {[%clk 0:01:41.2]} 50.
e4 {[%clk 0:02:51.8]} 50... dxe4 {[%clk 0:01:39.5]} 51. fxe4 {[%clk 0:02:51.1]}
51... Kd8 {[%clk 0:01:37]} 52. Kf3 {[%clk 0:02:50.3]} 52... Kc7 {[%clk
0:01:36.1]} 53. Ke3 {[%clk 0:02:48.2]} 53... Kd6 {[%clk 0:01:35.3]} 54. Kd3
{[%clk 0:02:46.9]} 54... c5 {[%clk 0:01:34.5]} 55. Nc4+ {[%clk 0:02:45.9]} 55...
Kc6 {[%clk 0:01:29.6]} 56. d5+ {[%clk 0:02:45.5]} 56... Nxd5 {[%clk 0:01:19.3]}
57. exd5+ {[%clk 0:02:34.1]} 57... Kxd5 {[%clk 0:01:18.4]} 58. Ne3+ {[%clk
0:02:33.5]} 58... Kc6 {[%clk 0:01:16.4]} 59. Kc4 {[%clk 0:02:32.1]} 59... a6
{[%clk 0:01:15.3]} 60. a5 {[%clk 0:02:31.1]} 60... b6 {[%clk 0:01:14.5]} 61.
axb6 {[%clk 0:02:30.2]} 61... Kxb6 {[%clk 0:01:13.7]} 62. Nd5+ {[%clk
0:02:29.9]} 62... Kc6 {[%clk 0:01:12.7]} 63. Nc3 {[%clk 0:02:29.8]} 63... Kb6
{[%clk 0:01:11.3]} 64. Na4+ {[%clk 0:02:29.4]} 64... Kc6 {[%clk 0:01:10.1]} 65.
Nxc5 {[%clk 0:02:28.5]} 1-0

[Event "Live Chess"]
[Site "Chess.com"]
[Date "2024.06.02"]
[Round "-"]
[White "Tatarinov_Maxim"]
[Black "booktrunk"]
[Result "1-0"]
[WhiteElo "2279"]
[BlackElo "1524"]
[TimeControl "300"]
[EndTime "22:32:42 PDT"]
[Termination "Tatarinov_Maxim won by resignation"]

1. Nf3 {[%clk 0:04:56.6]} 1... b6 {[%clk 0:04:57.4]} 2. e4 {[%clk 0:04:52.1]}
2... Bb7 {[%clk 0:04:56.1]} 3. Nc3 {[%clk 0:04:51.2]} 3... e6 {[%clk 0:04:54.2]}
4. d4 {[%clk 0:04:50.2]} 4... Nf6 {[%clk 0:04:52.6]} 5. Bd3 {[%clk 0:04:48.2]}
5... Bb4 {[%clk 0:04:51.1]} 6. Bg5 {[%clk 0:04:42.1]} 6... h6 {[%clk 0:04:48.6]}
7. Bxf6 {[%clk 0:04:40.8]} 7... Qxf6 {[%clk 0:04:46.7]} 8. O-O {[%clk
0:04:39.8]} 8... Bxc3 {[%clk 0:04:44.2]} 9. bxc3 {[%clk 0:04:38.5]} 9... O-O
{[%clk 0:04:42.4]} 10. Qe2 {[%clk 0:04:34.7]} 10... d6 {[%clk 0:04:41.1]} 11.
Rfe1 {[%clk 0:04:28.4]} 11... Nd7 {[%clk 0:04:37.6]} 12. Rad1 {[%clk 0:04:16.6]}
12... a5 {[%clk 0:04:34.5]} 13. Nd2 {[%clk 0:03:57.4]} 13... e5 {[%clk
0:04:24.3]} 14. Nf1 {[%clk 0:03:43.2]} 14... exd4 {[%clk 0:04:21.4]} 15. cxd4
{[%clk 0:03:43.1]} 15... Rfe8 {[%clk 0:04:16.5]} 16. Ng3 {[%clk 0:03:38.5]}
16... c5 {[%clk 0:04:09.1]} 17. c3 {[%clk 0:03:36.2]} 17... cxd4 {[%clk
0:04:07.1]} 18. cxd4 {[%clk 0:03:36.1]} 18... Nb8 {[%clk 0:03:55.7]} 19. Bb5
{[%clk 0:03:31.7]} 19... Re7 {[%clk 0:03:48.5]} 20. Qg4 {[%clk 0:03:06.7]} 20...
Ba6 {[%clk 0:03:43.5]} 21. Bxa6 {[%clk 0:03:01.9]} 21... Nxa6 {[%clk 0:03:41.2]}
22. Nf5 {[%clk 0:03:01.3]} 22... Rd7 {[%clk 0:03:27.4]} 23. Nxh6+ {[%clk
0:02:52.3]} 23... Qxh6 {[%clk 0:03:19.6]} 24. Qxd7 {[%clk 0:02:52.2]} 24... Nb4
{[%clk 0:03:16]} 25. h3 {[%clk 0:02:44.5]} 25... Nxa2 {[%clk 0:03:12.3]} 26. e5
{[%clk 0:02:36.2]} 26... dxe5 {[%clk 0:03:09.5]} 27. dxe5 {[%clk 0:02:36.1]}
27... Nc3 {[%clk 0:03:06.7]} 28. Qc6 {[%clk 0:02:22.6]} 28... Nxd1 {[%clk
0:03:04.1]} 29. Qxa8+ {[%clk 0:02:21.1]} 29... Kh7 {[%clk 0:03:01.7]} 30. Qe4+
{[%clk 0:02:20.5]} 30... g6 {[%clk 0:02:57.8]} 31. Rxd1 {[%clk 0:02:19.2]} 31...
f5 {[%clk 0:02:56.5]} 32. exf6 {[%clk 0:02:17.6]} 32... Qf8 {[%clk 0:02:54.6]}
33. Rd7+ {[%clk 0:02:14.8]} 33... Kg8 {[%clk 0:02:53.2]} 34. Qxg6+ {[%clk
0:02:11.2]} 1-0

[Event "Live Chess"]
[Site "Chess.com"]
[Date "2024.06.02"]
[Round "-"]
[White "febray_27"]
[Black "Isambard_Thomas"]
[Result "1-0"]
[WhiteElo "2048"]
[BlackElo "2153"]
[TimeControl "300"]
[EndTime "22:33:58 PDT"]
[Termination "febray_27 won by resignation"]

1. Nf3 {[%clk 0:04:54.1]} 1... d5 {[%clk 0:04:58.9]} 2. d4 {[%clk 0:04:53.6]}
2... c6 {[%clk 0:04:57.8]} 3. g3 {[%clk 0:04:51.1]} 3... Nf6 {[%clk 0:04:56.7]}
4. Bg2 {[%clk 0:04:50.6]} 4... Bg4 {[%clk 0:04:55.9]} 5. O-O {[%clk 0:04:49.8]}
5... e6 {[%clk 0:04:55.5]} 6. c4 {[%clk 0:04:48.2]} 6... Bd6 {[%clk 0:04:54.7]}
7. Nc3 {[%clk 0:04:46.8]} 7... h5 {[%clk 0:04:53.2]} 8. h4 {[%clk 0:04:45.5]}
8... Qc7 {[%clk 0:04:50.1]} 9. cxd5 {[%clk 0:04:31.3]} 9... exd5 {[%clk
0:04:48.1]} 10. Qc2 {[%clk 0:04:11.8]} 10... Nbd7 {[%clk 0:04:40.6]} 11. e4
{[%clk 0:04:01.1]} 11... Bxg3 {[%clk 0:03:39.8]} 12. e5 {[%clk 0:03:59.7]} 12...
Bxf2+ {[%clk 0:03:25.3]} 13. Rxf2 {[%clk 0:03:56.1]} 13... Ne4 {[%clk
0:03:12.8]} 14. Nxe4 {[%clk 0:03:53.5]} 14... dxe4 {[%clk 0:03:12.7]} 15. Qxe4
{[%clk 0:03:52.7]} 15... O-O-O {[%clk 0:03:07.5]} 16. Bf4 {[%clk 0:03:49.7]}
16... Qb6 {[%clk 0:03:05.3]} 17. b3 {[%clk 0:03:42.1]} 17... f5 {[%clk
0:03:04.1]} 18. exf6 {[%clk 0:03:35.8]} 18... Nxf6 {[%clk 0:03:03.1]} 19. Qe5
{[%clk 0:03:30.3]} 19... Nd7 {[%clk 0:02:53.8]} 20. Qd6 {[%clk 0:03:21.3]} 20...
Rdg8 {[%clk 0:02:50.8]} 21. Ne5 {[%clk 0:03:01.2]} 1-0

[Event "Live Chess"]
[Site "Chess.com"]
[Date "2024.06.02"]
[Round "-"]
[White "Delacorta"]
[Black "Dhaydon19"]
[Result "0-1"]
[WhiteElo "1529"]
[BlackElo "2680"]
[TimeControl "300"]
[EndTime "22:34:03 PDT"]
[Termination "Dhaydon19 won by checkmate"]

1. d4 {[%clk 0:04:57.5]} 1... c6 {[%clk 0:04:57.7]} 2. Nf3 {[%clk 0:04:55.7]}
2... d5 {[%clk 0:04:57.3]} 3. h3 {[%clk 0:04:52.9]} 3... Nf6 {[%clk 0:04:55.7]}
4. b3 {[%clk 0:04:51.8]} 4... g6 {[%clk 0:04:54.6]} 5. Bb2 {[%clk 0:04:50.8]}
5... Bg7 {[%clk 0:04:54.3]} 6. Nbd2 {[%clk 0:04:49.7]} 6... O-O {[%clk
0:04:53.9]} 7. e3 {[%clk 0:04:48.8]} 7... Nbd7 {[%clk 0:04:53.3]} 8. Be2 {[%clk
0:04:47.8]} 8... Re8 {[%clk 0:04:52.9]} 9. O-O {[%clk 0:04:46.4]} 9... Qc7
{[%clk 0:04:52.4]} 10. Rc1 {[%clk 0:04:43.7]} 10... e6 {[%clk 0:04:49]} 11. c4
{[%clk 0:04:40.7]} 11... Bf8 {[%clk 0:04:47.7]} 12. Qc2 {[%clk 0:04:28.1]} 12...
Bd6 {[%clk 0:04:45.6]} 13. c5 {[%clk 0:04:21]} 13... Bf8 {[%clk 0:04:12.6]} 14.
Ne5 {[%clk 0:04:18.5]} 14... Nxe5 {[%clk 0:04:11.2]} 15. dxe5 {[%clk 0:04:17.2]}
15... Nd7 {[%clk 0:04:10.7]} 16. f4 {[%clk 0:04:16.1]} 16... Bxc5 {[%clk
0:04:09.1]} 17. h4 {[%clk 0:04:07.4]} 17... Bxe3+ {[%clk 0:04:06.7]} 18. Kh1
{[%clk 0:04:07]} 18... Qd8 {[%clk 0:04:04.3]} 19. h5 {[%clk 0:04:05.9]} 19...
Qh4# {[%clk 0:04:01.7]} 0-1

[Event "Live Chess"]
[Site "Chess.com"]
[Date "2024.06.02"]
[Round "-"]
[White "Cruiseylee78"]
[Black "Ocelot32"]
[Result "1-0"]
[WhiteElo "1677"]
[BlackElo "1379"]
[TimeControl "300"]
[EndTime "22:34:18 PDT"]
[Termination "Cruiseylee78 won by resignation"]

1. e4 {[%clk 0:04:56.2]} 1... e6 {[%clk 0:04:57.6]} 2. b3 {[%clk 0:04:54.3]}
2... d5 {[%clk 0:04:55.7]} 3. Bb2 {[%clk 0:04:53.2]} 3... dxe4 {[%clk
0:04:53.6]} 4. g4 {[%clk 0:04:51.1]} 4... Bc5 {[%clk 0:04:45.9]} 5. Nc3 {[%clk
0:04:49.7]} 5... Nc6 {[%clk 0:04:38.4]} 6. Nxe4 {[%clk 0:04:46.3]} 6... Bb6
{[%clk 0:04:32.7]} 7. Bxg7 {[%clk 0:04:44.9]} 7... Qh4 {[%clk 0:04:20.7]} 8.
Bxh8 {[%clk 0:04:41.2]} 8... f5 {[%clk 0:04:17.9]} 9. Nf3 {[%clk 0:04:39.3]}
9... Qxg4 {[%clk 0:04:11.8]} 10. Ng3 {[%clk 0:04:15.2]} 10... Bd7 {[%clk
0:03:49.6]} 11. h3 {[%clk 0:04:08.1]} 11... Qb4 {[%clk 0:03:44.2]} 12. c3 {[%clk
0:04:05.2]} 12... Qc5 {[%clk 0:03:40.2]} 13. Qe2 {[%clk 0:03:47.1]} 13... O-O-O
{[%clk 0:03:34.1]} 14. c4 {[%clk 0:03:38.3]} 14... Qa3 {[%clk 0:03:25.2]} 15.
Bc3 {[%clk 0:03:33.3]} 15... Ba5 {[%clk 0:03:15.2]} 16. Bxa5 {[%clk 0:03:31.2]}
16... Qxa5 {[%clk 0:03:13.7]} 17. Bg2 {[%clk 0:03:22.9]} 17... f4 {[%clk
0:03:10.3]} 18. Ne4 {[%clk 0:03:21.3]} 18... Nge7 {[%clk 0:03:02]} 19. O-O
{[%clk 0:03:19.9]} 19... Rg8 {[%clk 0:02:59.1]} 20. Nfg5 {[%clk 0:03:09.7]}
20... h6 {[%clk 0:02:54.5]} 21. Nf7 {[%clk 0:03:07.2]} 21... Nf5 {[%clk
0:02:45.3]} 22. Kh2 {[%clk 0:02:42.2]} 22... Ncd4 {[%clk 0:02:42.5]} 23. Qd3
{[%clk 0:02:37.6]} 23... Nh4 {[%clk 0:02:34.8]} 24. Rg1 {[%clk 0:02:33]} 24...
f3 {[%clk 0:02:17.9]} 25. Bf1 {[%clk 0:02:19.1]} 25... Qe5+ {[%clk 0:02:15.8]}
26. Kh1 {[%clk 0:02:16.1]} 26... Rxg1+ {[%clk 0:02:07.7]} 27. Kxg1 {[%clk
0:02:14.4]} 27... Qg7+ {[%clk 0:02:00.5]} 28. Kh2 {[%clk 0:02:10.7]} 28... Qxf7
{[%clk 0:01:57]} 29. Qxd4 {[%clk 0:02:07.1]} 29... Qf4+ {[%clk 0:01:55.5]} 30.
Kh1 {[%clk 0:02:00]} 30... e5 {[%clk 0:01:53.8]} 31. Nd6+ {[%clk 0:01:53.8]}
31... cxd6 {[%clk 0:01:50.9]} 32. Qxf4 {[%clk 0:01:50.3]} 32... exf4 {[%clk
0:01:47.7]} 33. Re1 {[%clk 0:01:44.2]} 33... Ng2 {[%clk 0:01:41.5]} 34. Bxg2
{[%clk 0:01:42.6]} 34... fxg2+ {[%clk 0:01:40.3]} 35. Kxg2 {[%clk 0:01:42.5]}
35... Bc6+ {[%clk 0:01:38.6]} 36. f3 {[%clk 0:01:40.8]} 36... Kd7 {[%clk
0:01:35.1]} 37. Kf2 {[%clk 0:01:35.2]} 37... d5 {[%clk 0:01:30.9]} 38. cxd5
{[%clk 0:01:33.3]} 38... Bxd5 {[%clk 0:01:30.8]} 39. Rg1 {[%clk 0:01:32]} 39...
Kd6 {[%clk 0:01:28.7]} 40. Rg6+ {[%clk 0:01:30.5]} 40... Be6 {[%clk 0:01:27.4]}
41. Rxh6 {[%clk 0:01:30.4]} 41... Kd5 {[%clk 0:01:25.9]} 42. d4 {[%clk
0:01:25.7]} 1-0

[Event "Live Chess"]
[Site "Chess.com"]
[Date "2024.06.02"]
[Round "-"]
[White "Tushinskiy"]
[Black "RockTroll"]
[Result "1/2-1/2"]
[WhiteElo "2275"]
[BlackElo "2182"]
[TimeControl "300"]
[EndTime "22:34:38 PDT"]
[Termination "Game drawn by agreement"]

1. d4 {[%clk 0:04:56.1]} 1... Nf6 {[%clk 0:04:59.6]} 2. c3 {[%clk 0:04:56]} 2...
g6 {[%clk 0:04:59.1]} 3. Nf3 {[%clk 0:04:55.9]} 3... Bg7 {[%clk 0:04:58.7]} 4.
Bf4 {[%clk 0:04:55.8]} 4... O-O {[%clk 0:04:58.2]} 5. Bg3 {[%clk 0:04:55.7]}
5... d6 {[%clk 0:04:57.7]} 6. Nbd2 {[%clk 0:04:55.6]} 6... Nc6 {[%clk 0:04:57]}
7. e4 {[%clk 0:04:54.3]} 7... Nh5 {[%clk 0:04:54.6]} 8. Qc2 {[%clk 0:04:49.6]}
8... e5 {[%clk 0:04:53.5]} 9. dxe5 {[%clk 0:04:47.7]} 9... dxe5 {[%clk
0:04:51.8]} 10. Be2 {[%clk 0:04:46.7]} 10... h6 {[%clk 0:04:39.1]} 11. O-O
{[%clk 0:04:45]} 11... Qf6 {[%clk 0:04:37.7]} 12. Rad1 {[%clk 0:04:42.4]} 12...
Nf4 {[%clk 0:04:34.3]} 13. Nc4 {[%clk 0:04:40.4]} 13... Bg4 {[%clk 0:04:28.6]}
14. Ne3 {[%clk 0:04:38.2]} 14... Nxe2+ {[%clk 0:04:26.1]} 15. Qxe2 {[%clk
0:04:38.1]} 15... Bxf3 {[%clk 0:04:25.2]} 16. Qxf3 {[%clk 0:04:36.5]} 16... Qxf3
{[%clk 0:04:24]} 17. gxf3 {[%clk 0:04:36.4]} 17... Rfd8 {[%clk 0:04:04.2]} 18.
Nd5 {[%clk 0:04:20.4]} 18... g5 {[%clk 0:03:41.9]} 19. Nxc7 {[%clk 0:04:12.4]}
19... Rac8 {[%clk 0:03:41.1]} 20. Nd5 {[%clk 0:04:10.7]} 20... Kf8 {[%clk
0:03:40.4]} 21. h4 {[%clk 0:04:07.6]} 21... f6 {[%clk 0:03:39.1]} 22. Kg2 {[%clk
0:04:03.1]} 22... Kf7 {[%clk 0:03:38.1]} 23. Rd2 {[%clk 0:03:55.8]} 23... Bf8
{[%clk 0:03:27.6]} 24. Rfd1 {[%clk 0:03:53.7]} 24... Ne7 {[%clk 0:03:18.3]} 25.
Ne3 {[%clk 0:03:41.3]} 25... Nc6 {[%clk 0:03:10.2]} 26. Nf5 {[%clk 0:03:27.4]}
26... Rxd2 {[%clk 0:03:07]} 27. Rxd2 {[%clk 0:03:26.1]} 27... Rd8 {[%clk
0:03:06.6]} 28. Rxd8 {[%clk 0:03:19.3]} 28... Nxd8 {[%clk 0:03:06.5]} 29. hxg5
{[%clk 0:03:18.3]} 29... hxg5 {[%clk 0:03:05.2]} 30. Kf1 {[%clk 0:03:18.2]}
30... Ke6 {[%clk 0:03:02.6]} 31. Ke2 {[%clk 0:03:17.1]} 31... Nc6 {[%clk
0:02:59.7]} 32. Kd3 {[%clk 0:03:15.6]} 32... b5 {[%clk 0:02:57.6]} 33. b3 {[%clk
0:03:12.1]} 33... Bc5 {[%clk 0:02:49.2]} 34. Ng7+ {[%clk 0:03:04.4]} 34... Kf7
{[%clk 0:02:42]} 35. Nf5 {[%clk 0:03:02.5]} 35... Ne7 {[%clk 0:02:41.2]} 36. Ne3
{[%clk 0:03:00.6]} 36... Ke6 {[%clk 0:02:36.4]} 37. c4 {[%clk 0:02:52.2]} 37...
b4 {[%clk 0:02:31.7]} 38. Nd1 {[%clk 0:02:44.5]} 38... Nc6 {[%clk 0:02:30.7]}
39. Ne3 {[%clk 0:02:41.9]} 39... Nd4 {[%clk 0:02:29.8]} 40. Nd5 {[%clk
0:02:37.2]} 40... Nxf3 {[%clk 0:02:25.9]} 41. Nc7+ {[%clk 0:02:35.5]} 41... Kf7
{[%clk 0:02:22.4]} 42. Nd5 {[%clk 0:02:28.8]} 42... Kg6 {[%clk 0:02:20.1]} 43.
Ke2 {[%clk 0:02:26.2]} 43... Nd4+ {[%clk 0:02:18.5]} 44. Kd3 {[%clk 0:02:25.5]}
44... Ne6 {[%clk 0:01:56.3]} 45. Kd2 {[%clk 0:02:17]} 45... Ng7 {[%clk
0:01:44.5]} 46. f3 {[%clk 0:02:10.7]} 46... Nh5 {[%clk 0:01:40.8]} 47. Be1
{[%clk 0:02:08]} 47... Nf4 {[%clk 0:01:37.2]} 48. Kd1 {[%clk 0:02:00.4]} 48...
Nxd5 {[%clk 0:01:34.2]} 49. cxd5 {[%clk 0:01:56.8]} 49... f5 {[%clk 0:01:31.1]}
50. Ke2 {[%clk 0:01:55.5]} 50... g4 {[%clk 0:01:29.1]} 51. exf5+ {[%clk
0:01:48.5]} 51... Kxf5 {[%clk 0:01:28.3]} 52. fxg4+ {[%clk 0:01:48.4]} 52...
Kxg4 {[%clk 0:01:27.6]} 53. Bf2 {[%clk 0:01:44.5]} 53... Bxf2 {[%clk 0:01:11.8]}
54. Kxf2 {[%clk 0:01:44.4]} 54... Kf5 {[%clk 0:01:11.2]} 55. Ke3 {[%clk
0:01:43.4]} 55... e4 {[%clk 0:01:09.5]} 56. d6 {[%clk 0:01:42.1]} 56... Ke6
{[%clk 0:01:09]} 57. Kxe4 {[%clk 0:01:41.1]} 57... Kxd6 {[%clk 0:01:08.5]} 58.
Kd4 {[%clk 0:01:41]} 58... a5 {[%clk 0:01:06.6]} 59. Kc4 {[%clk 0:01:39.6]}
59... Kc6 {[%clk 0:01:06.3]} 60. Kd4 {[%clk 0:01:39.2]} 60... Kd6 {[%clk
0:01:00.8]} 1/2-1/2